bitfinex-derivatives/quotes_BTCF0:USTF0_20250119
["timestamp","ask_amount","ask_price","bid_price","bid_amount"]
[1737315920628,0.4664,105540.0,105530.0,1.19233508]
[1737315922031,0.4664,105540.0,105530.0,1.18462461]
[1737315922227,0.4664,105540.0,105530.0,1.19233506]
[1737315922839,0.4664,105540.0,105530.0,1.19294906]
[1737315923738,0.4664,105540.0,105530.0,1.50932894]
[1737315924032,0.4664,105540.0,105530.0,1.50994301]
[1737315925336,0.4664,105540.0,105530.0,1.17205207]
[1737315925637,0.3608,105550.0,105530.0,1.21960053]
[1737315925831,0.3608,105550.0,105530.0,1.65060053]
[1737315926134,0.3608,105550.0,105530.0,1.65059988]
[1737315926342,0.3608,105550.0,105530.0,1.64998585]
[1737315926934,0.3608,105550.0,105530.0,1.65591596]
[1737315927835,0.3608,105550.0,105530.0,1.65591526]
[1737315928231,0.3608,105560.0,105530.0,1.65591526]
[1737315928541,0.3608,105560.0,105550.0,0.047425]
[1737315928840,0.3608,105560.0,105550.0,0.06106337]
[1737315930750,0.3608,105560.0,105550.0,0.99456324]
[1737315931235,0.3608,105560.0,105550.0,0.99517647]
[1737315931744,0.3608,105560.0,105550.0,0.99456324]
[1737315931942,0.40822,105560.0,105550.0,0.67756936]
[1737315932842,0.3608,105560.0,105550.0,0.67756936]
[1737315933545,0.3608,105560.0,105550.0,0.67818259]
[1737315934243,0.40822,105560.0,105550.0,0.67818259]
[1737315934437,0.40822,105560.0,105550.0,0.67756936]
[1737315934845,0.40822,105560.0,105550.0,0.68769516]
[1737315935443,0.40822,105560.0,105550.0,0.6312273]
[1737315936246,0.40822,105560.0,105550.0,0.63122772]
[1737315936746,0.3608,105560.0,105550.0,0.63122772]
[1737315938347,0.408221,105560.0,105550.0,0.58380272]
[1737315938749,0.408221,105560.0,105550.0,0.63122772]
[1737315940147,0.408221,105560.0,105550.0,0.57506319]
[1737315940353,0.408221,105560.0,105550.0,0.29605177]
[1737315941453,0.408221,105560.0,105550.0,0.29605272]
[1737315943455,0.3608,105560.0,105550.0,0.29605272]
[1737315944155,0.3608,105560.0,105550.0,0.57707943]
[1737315945251,0.3608,105560.0,105550.0,0.86197712]
[1737315945556,0.3608,105560.0,105550.0,0.86197713]
[1737315946259,0.3608,105560.0,105550.0,1.12845317]
[1737315949955,0.408221,105560.0,105550.0,1.08102817]
[1737315950157,0.408221,105560.0,105550.0,1.12845317]
[1737315952263,0.408221,105560.0,105550.0,1.08102817]
[1737315952961,0.408221,105560.0,105550.0,1.07090237]
[1737315953856,0.408221,105560.0,105550.0,1.02958297]
[1737315954864,0.408221,105560.0,105550.0,0.74855775]
[1737315954865,0.52137689,105560.0,105550.0,0.74855775]
[1737315956559,0.54966586,105560.0,105550.0,0.91745752]
[1737315957660,0.408221,105560.0,105550.0,0.91745752]
[1737315958955,0.408221,105560.0,105550.0,0.69230088]
[1737315958956,0.54966586,105560.0,105550.0,0.69230088]
[1737315960163,0.54966586,105560.0,105550.0,0.68636996]
[1737315960360,0.66331614,105560.0,105550.0,0.68636996]
[1737315960669,0.66331614,105560.0,105550.0,0.6863701]
[1737315961160,0.6734037,105560.0,105550.0,0.6863701]
[1737315961766,0.53195884,105560.0,105550.0,0.74262697]
[1737315962168,0.53195884,105560.0,105550.0,0.74262699]
[1737315964168,0.53195884,105560.0,105550.0,0.74262712]
[1737315964373,0.53195884,105560.0,105550.0,0.9114796]
[1737315970060,0.55975342,105560.0,105550.0,0.68632296]
[1737315971572,0.55975342,105560.0,105550.0,0.51747048]
[1737315973565,0.85975342,105560.0,105540.0,0.40393704]
[1737315973768,0.626025,105550.0,105540.0,0.40393704]
[1737315974167,0.626025,105550.0,105540.0,0.23508456]
[1737315974872,0.626025,105550.0,105540.0,0.22515664]
[1737315975574,0.04743,105540.0,105530.0,0.39410289]
[1737315975765,0.40823,105540.0,105530.0,0.40003498]
[1737315975965,0.40823,105540.0,105530.0,0.39410289]
[1737315976974,0.40823,105540.0,105530.0,0.22527106]
[1737315977173,0.40823,105540.0,105530.0,0.23529613]
[1737315977974,0.40823,105540.0,105530.0,0.20980448]
[1737315979074,0.4083408,105540.0,105530.0,0.20980448]
[1737315983583,0.4083408,105540.0,105530.0,0.21455013]
[1737315983881,0.4083408,105540.0,105530.0,0.01477072]
[1737315985582,0.4083408,105540.0,105530.0,0.01773677]
[1737315986270,0.4083408,105540.0,105530.0,0.0610778]
[1737315986271,0.3609108,105540.0,105530.0,0.0610778]
[1737315986466,0.47445316,105550.0,105530.0,0.48989364]
[1737315986665,0.11365316,105550.0,105540.0,0.40884584]
[1737315986871,0.01765316,105550.0,105540.0,0.42248964]
[1737315987575,0.01765316,105550.0,105540.0,0.4218738]
[1737315988081,0.01765316,105550.0,105540.0,0.0610738]
[1737315988279,0.408225,105550.0,105540.0,1.10430528]
[1737315988479,0.3608,105550.0,105540.0,1.10430528]
[1737315989192,0.3608,105550.0,105540.0,1.10430142]
[1737315989575,0.3608,105550.0,105540.0,1.03802272]
[1737315989776,0.3608,105550.0,105540.0,1.0380227]
[1737315990871,0.3608,105550.0,105540.0,1.0381227]
[1737315991074,0.3608,105550.0,105540.0,1.03812267]
[1737315991276,0.3608,105550.0,105540.0,1.04825373]
[1737315991574,0.4329,105560.0,105540.0,1.04825373]
[1737315991575,0.4329,105560.0,105550.0,0.047425]
[1737315991881,0.4329,105560.0,105550.0,0.06106489]
[1737315992487,0.480321,105560.0,105550.0,0.63389483]
[1737315994875,0.480321,105560.0,105550.0,0.63389446]
[1737315995586,0.480321,105560.0,105550.0,1.14373446]
[1737315996283,0.4329,105560.0,105550.0,1.14373446]
[1737315998385,0.477418,105570.0,105550.0,1.14373446]
[1737315999786,0.477418,105570.0,105550.0,1.09630946]
[1737316000687,0.3608,105560.0,105550.0,1.09630946]
[1737316000986,0.3608,105560.0,105550.0,1.48120264]
[1737316001188,0.4387,105560.0,105550.0,1.48120264]
[1737316001391,0.0779,105560.0,105550.0,1.48120264]
[1737316001887,0.4387,105560.0,105550.0,1.48120264]
[1737316002081,0.0779,105560.0,105550.0,1.48120264]
[1737316002287,0.477418,105570.0,105550.0,1.14373446]
[1737316002486,0.477418,105570.0,105550.0,1.13009494]
[1737316002679,0.477418,105570.0,105550.0,1.14373385]
[1737316002987,0.477418,105570.0,105550.0,1.48120203]
[1737316003288,0.3608,105560.0,105550.0,1.48120203]
[1737316003488,0.3608,105560.0,105550.0,1.4818035]
[1737316004386,0.3608,105560.0,105550.0,1.46756312]
[1737316004580,0.3608,105560.0,105550.0,1.4818034]
[1737316005095,0.3608,105560.0,105550.0,1.48180341]
[1737316005988,0.3608,105560.0,105550.0,1.48120189]
[1737316006384,0.3608,105560.0,105550.0,1.48120177]
[1737316006890,0.3608,105560.0,105550.0,1.48180323]
[1737316007186,0.3608,105560.0,105550.0,0.57090365]
[1737316007391,0.3608,105560.0,105550.0,0.58600365]
[1737316007593,0.43,105570.0,105550.0,0.58660511]
[1737316008184,0.43,105570.0,105550.0,0.58600365]
[1737316008387,0.43,105570.0,105550.0,0.86769371]
[1737316009394,0.43,105570.0,105550.0,1.4952126]
[1737316010397,0.0692,105570.0,105550.0,1.8560126]
[1737316011594,0.0692,105570.0,105550.0,1.57492343]
[1737316012097,0.0692,105570.0,105550.0,1.57492277]
[1737316013286,0.43,105570.0,105550.0,1.57492277]
[1737316013489,0.43,105570.0,105550.0,1.574321]
[1737316013693,0.0692,105570.0,105550.0,1.574321]
[1737316014195,0.0692,105570.0,105550.0,1.56603156]
[1737316015287,0.547612,105580.0,105550.0,1.56603156]
[1737316015787,0.547612,105580.0,105550.0,1.94746615]
[1737316016998,0.547612,105580.0,105550.0,1.56603156]
[1737316017389,0.547612,105580.0,105550.0,1.60812503]
[1737316017585,0.547612,105580.0,105550.0,1.57492454]
[1737316017791,0.547612,105580.0,105550.0,1.87492454]
[1737316017990,0.547612,105580.0,105550.0,1.57492454]
[1737316018295,0.5002,105580.0,105550.0,1.56603156]
[1737316018486,0.5002,105580.0,105550.0,1.95554976]
[1737316018690,0.5002,105580.0,105550.0,2.36710499]
[1737316018896,0.5002,105580.0,105550.0,2.06710472]
[1737316019098,0.5002,105580.0,105550.0,2.36710472]
[1737316019291,0.5002,105580.0,105550.0,2.33390472]
[1737316019597,0.5002,105580.0,105550.0,2.06710461]
[1737316019898,0.5002,105580.0,105550.0,2.06710434]
[1737316020094,0.5002,105580.0,105550.0,2.31967934]
[1737316020297,0.5002,105580.0,105550.0,2.68051553]
[1737316020504,0.5002,105580.0,105550.0,2.63842271]
[1737316020888,0.5002,105580.0,105550.0,2.68584571]
[1737316021091,0.5002,105580.0,105550.0,2.68594103]
[1737316021292,0.5002,105580.0,105550.0,2.38594103]
[1737316021493,0.5002,105580.0,105550.0,2.36643619]
[1737316021799,0.5002,105580.0,105550.0,2.66643619]
[1737316022201,0.5002,105580.0,105550.0,2.36643619]
[1737316022603,0.5002,105580.0,105550.0,2.66643619]
[1737316022899,0.547612,105580.0,105550.0,2.66643619]
[1737316023100,0.547612,105580.0,105550.0,2.36643619]
[1737316023503,0.547612,105580.0,105550.0,2.66643619]
[1737316024198,0.547612,105580.0,105550.0,2.36643619]
[1737316024590,0.547612,105580.0,105560.0,0.03044374]
[1737316024804,0.547612,105580.0,105560.0,0.0440794]
[1737316025198,0.547612,105580.0,105560.0,0.40487944]
[1737316025395,0.547612,105580.0,105560.0,0.04407944]
[1737316025796,0.547612,105580.0,105560.0,0.66331007]
[1737316027603,0.547612,105580.0,105560.0,0.66330974]
[1737316028507,0.547612,105580.0,105570.0,0.00058675]
[1737316028701,0.5002,105580.0,105570.0,0.01422212]
[1737316029108,0.5002,105580.0,105570.0,0.30427269]
[1737316030606,0.5002,105580.0,105570.0,0.35168869]
[1737316031108,0.5002,105580.0,105570.0,0.35168873]
[1737316032200,0.5002,105580.0,105570.0,0.35110195]
[1737316033300,0.5002,105580.0,105570.0,0.66141306]
[1737316034305,0.5002,105580.0,105570.0,0.66200022]
[1737316034707,0.5002,105580.0,105570.0,0.67161626]
[1737316035808,0.5002,105580.0,105570.0,1.0088889]
[1737316037412,0.5002,105580.0,105570.0,0.67161626]
[1737316038906,0.5002,105580.0,105570.0,0.67102912]
[1737316040512,0.5002,105580.0,105570.0,0.67161704]
[1737316042715,0.5002,105580.0,105570.0,1.00954133]
[1737316044214,0.5002,105580.0,105570.0,1.51914133]
[1737316044418,0.1,105600.0,105570.0,1.87935341]
[1737316044617,0.3608,105590.0,105570.0,1.85504941]
[1737316044812,0.3608,105590.0,105570.0,2.35926424]
[1737316045009,0.3608,105590.0,105570.0,2.40330598]
[1737316045209,0.3608,105590.0,105570.0,2.35926424]
[1737316045517,0.3608,105590.0,105570.0,2.6852114]
[1737316045718,0.3608,105580.0,105570.0,2.0244114]
[1737316046412,0.3608,105580.0,105570.0,2.02940417]
[1737316046615,0.4406,105590.0,105570.0,1.98731539]
[1737316046809,0.3608,105580.0,105570.0,1.98731539]
[1737316047210,0.3608,105580.0,105570.0,1.9458229]
[1737316048213,0.3608,105580.0,105570.0,1.94582306]
[1737316049121,0.3608,105580.0,105570.0,1.92516725]
[1737316049317,0.3608,105580.0,105570.0,1.91746142]
[1737316049508,0.3608,105580.0,105570.0,1.9251671]
[1737316050114,0.4406,105590.0,105570.0,1.9251671]
[1737316050115,0.4406,105590.0,105570.0,1.92516712]
[1737316051019,0.3608,105580.0,105570.0,1.92516712]
[1737316052129,0.3608,105580.0,105570.0,1.92516701]
[1737316052514,0.3608,105580.0,105570.0,1.96725146]
[1737316052715,0.3608,105580.0,105570.0,2.00874327]
[1737316053821,0.3608,105580.0,105570.0,2.41625342]
[1737316054021,0.3608,105580.0,105570.0,2.41625345]
[1737316054815,0.3608,105580.0,105570.0,2.43049345]
[1737316055221,0.3608,105580.0,105570.0,2.388409]
[1737316055528,0.3608,105580.0,105570.0,2.45893159]
[1737316056219,0.3608,105580.0,105570.0,2.80101604]
[1737316056416,0.3608,105580.0,105570.0,2.86881604]
[1737316056612,0.21792478,105600.0,105590.0,0.047407]
[1737316056923,0.21792478,105600.0,105590.0,0.77671262]
[1737316058826,0.21792478,105600.0,105590.0,2.12876688]
[1737316059925,0.21792478,105600.0,105590.0,2.12876574]
[1737316060629,0.18292532,105600.0,105590.0,2.12876574]
[1737316062629,0.18292532,105600.0,105590.0,2.12935175]
[1737316062831,0.18292532,105600.0,105590.0,2.12876574]
[1737316063328,0.18292532,105600.0,105590.0,2.12935192]
[1737316063632,0.18292532,105600.0,105590.0,2.12935218]
[1737316063826,0.18292532,105600.0,105590.0,1.37765974]
[1737316065425,0.18292532,105600.0,105590.0,1.37707383]
[1737316066027,0.18292532,105600.0,105590.0,2.1292571]
[1737316067532,0.18292532,105600.0,105590.0,2.13887823]
[1737316068433,0.1568,105600.0,105590.0,2.13887823]
[1737316070033,0.1568,105600.0,105590.0,3.09066184]
[1737316071228,0.1568,105600.0,105590.0,3.54011475]
[1737316071433,0.1568,105600.0,105590.0,3.54011492]
[1737316072233,0.1568,105600.0,105590.0,3.54011505]
[1737316072435,0.1568,105600.0,105590.0,2.13887853]
[1737316073935,0.1568,105600.0,105590.0,3.60187643]
[1737316074937,0.1568,105600.0,105590.0,3.61611643]
[1737316075237,0.1568,105600.0,105590.0,4.05257412]
[1737316076436,0.1568,105600.0,105590.0,3.11205169]
[1737316077137,0.1568,105600.0,105590.0,3.1120513]
[1737316077444,0.1568,105600.0,105590.0,2.66259869]
[1737316079136,0.1568,105600.0,105590.0,2.64835869]
[1737316080133,0.2422,105600.0,105590.0,2.64835869]
[1737316080840,0.2422,105600.0,105590.0,3.0978116]
[1737316081034,0.2422,105600.0,105590.0,3.09781187]
[1737316081635,0.2422,105600.0,105590.0,3.09781214]
[1737316082239,0.2422,105600.0,105590.0,3.09840148]
[1737316082438,0.2422,105600.0,105590.0,3.09840152]
[1737316083043,0.2422,105600.0,105590.0,2.34621782]
[1737316083444,0.2422,105600.0,105590.0,2.34562849]
[1737316084134,0.2422,105600.0,105590.0,2.78434662]
[1737316085438,0.2422,105600.0,105590.0,3.28841141]
[1737316085741,0.2422,105600.0,105590.0,3.67375653]
[1737316086542,0.2422,105600.0,105590.0,3.6737566]
[1737316088541,0.2422,105600.0,105590.0,3.12490515]
[1737316088741,0.2422,105600.0,105590.0,3.11719982]
[1737316088938,0.2422,105600.0,105590.0,3.12490519]
[1737316089141,0.2422,105600.0,105590.0,3.12548398]
[1737316089751,0.2422,105600.0,105590.0,2.67603107]
[1737316090144,0.2422,105600.0,105590.0,2.66774691]
[1737316090342,0.2422,105600.0,105590.0,2.67545229]
[1737316092141,0.2422,105600.0,105590.0,2.67545232]
[1737316092341,0.289603,105600.0,105590.0,1.12774751]
[1737316092552,0.650403,105600.0,105570.0,1.46352345]
[1737316092749,0.408212,105580.0,105570.0,1.47122985]
[1737316093750,0.408212,105580.0,105570.0,1.30005143]
[1737316094150,0.408212,105580.0,105570.0,1.29234503]
[1737316095255,0.408212,105580.0,105570.0,0.84693562]
[1737316095553,0.408212,105580.0,105570.0,0.85669903]
[1737316095754,0.3608,105580.0,105570.0,0.85669903]
[1737316096152,0.658912,105580.0,105570.0,0.85669903]
[1737316096345,0.658912,105580.0,105550.0,1.31489877]
[1737316096658,0.408217,105570.0,105550.0,0.95409877]
[1737316096847,0.408217,105570.0,105550.0,1.00152277]
[1737316097047,0.658913,105580.0,105560.0,0.3608]
[1737316097249,0.658913,105580.0,105550.0,1.61862277]
[1737316097452,0.660913,105580.0,105550.0,1.59894707]
[1737316097652,0.660913,105580.0,105560.0,0.4087965]
[1737316098052,0.659913,105580.0,105560.0,0.63374539]
[1737316098252,0.658913,105580.0,105560.0,0.63374539]
[1737316098559,9.894e-05,105570.0,105560.0,0.63374539]
[1737316098858,9.894e-05,105570.0,105560.0,0.58632639]
[1737316099353,9.894e-05,105570.0,105560.0,0.28176361]
[1737316099760,0.706328,105580.0,105560.0,0.28176361]
[1737316100361,0.658913,105580.0,105570.0,0.22450276]
[1737316102665,0.658913,105580.0,105570.0,0.22924632]
[1737316102867,0.658913,105580.0,105570.0,0.00474356]
[1737316104164,0.658913,105580.0,105560.0,0.50568887]
[1737316104474,0.408216,105570.0,105560.0,0.51043243]
[1737316104664,0.408216,105570.0,105560.0,0.51339717]
[1737316104866,0.408216,105570.0,105560.0,0.23221106]
[1737316105769,0.408216,105570.0,105560.0,0.23221117]
[1737316109474,0.408216,105570.0,105560.0,0.23221125]
[1737316110676,0.408216,105570.0,105560.0,0.23221122]
[1737316111478,0.408216,105570.0,105560.0,0.23221109]
[1737316111666,0.408216,105570.0,105560.0,0.23180374]
[1737316114070,0.047416,105570.0,105560.0,0.23180374]
[1737316114272,0.408216,105570.0,105560.0,0.23180374]
[1737316115281,0.047414,105580.0,105560.0,0.64002274]
[1737316115469,0.047414,105580.0,105570.0,0.76828]
[1737316115671,0.408208,105590.0,105570.0,0.77598833]
[1737316115672,0.3608,105590.0,105570.0,0.77598833]
[1737316115875,0.408209,105590.0,105580.0,0.047412]
[1737316116075,0.408209,105590.0,105580.0,0.00770833]
[1737316116482,0.047409,105590.0,105580.0,0.00770833]
[1737316117078,0.408205,105600.0,105580.0,0.41592033]
[1737316117280,0.11357949,105610.0,105590.0,0.6202]
[1737316117475,0.47437949,105610.0,105590.0,0.26768435]
[1737316117778,0.3608,105620.0,105590.0,0.26710833]
[1737316117983,0.3608,105610.0,105590.0,0.26710833]
[1737316118187,0.3608,105610.0,105590.0,0.62790833]
[1737316118381,0.3608,105610.0,105590.0,0.26710833]
[1737316119082,0.3608,105610.0,105590.0,0.31451133]
[1737316120979,0.3608,105610.0,105590.0,1.24562578]
[1737316122281,0.3608,105610.0,105590.0,0.85304482]
[1737316122484,0.3608,105610.0,105590.0,0.80564182]
[1737316122985,0.3608,105620.0,105590.0,0.80563753]
[1737316123579,0.3608,105620.0,105590.0,0.5599519]
[1737316123983,0.3608,105610.0,105590.0,0.5599519]
[1737316124588,0.3608,105610.0,105590.0,0.26710404]
[1737316126987,0.3608,105610.0,105590.0,0.26710401]
[1737316127682,0.3608,105620.0,105610.0,0.047398]
[1737316127875,0.3608,105630.0,105610.0,0.05510201]
[1737316128075,0.3608,105630.0,105610.0,0.56519627]
[1737316128586,0.3608,105630.0,105610.0,0.61201701]
[1737316128776,0.3608,105630.0,105610.0,0.56461797]
[1737316129381,7.691e-05,105620.0,105610.0,0.56461797]
[1737316129884,7.691e-05,105620.0,105610.0,0.86670195]
[1737316130080,7.691e-05,105620.0,105610.0,1.22750195]
[1737316130283,7.691e-05,105620.0,105610.0,1.22758657]
[1737316130681,7.691e-05,105620.0,105610.0,1.22758592]
[1737316131282,7.691e-05,105620.0,105610.0,0.86678592]
[1737316132089,7.691e-05,105620.0,105610.0,1.22758592]
[1737316132776,7.691e-05,105620.0,105610.0,1.23729802]
[1737316134384,7.691e-05,105620.0,105610.0,0.87649802]
[1737316134688,7.691e-05,105620.0,105610.0,0.8764981]
[1737316134892,7.691e-05,105620.0,105610.0,1.2515381]
[1737316135082,7.691e-05,105620.0,105610.0,0.89073802]
[1737316135990,0.36087691,105620.0,105610.0,0.89073802]
[1737316136492,7.691e-05,105620.0,105610.0,1.2515382]
[1737316138387,7.691e-05,105620.0,105610.0,1.2438357]
[1737316138586,7.691e-05,105620.0,105610.0,1.25211066]
[1737316139291,7.691e-05,105620.0,105610.0,1.25153791]
[1737316140082,7.691e-05,105620.0,105610.0,1.34213791]
[1737316140283,7.691e-05,105620.0,105610.0,1.70008058]
[1737316140483,7.691e-05,105620.0,105610.0,1.7000805]
[1737316141693,7.691e-05,105620.0,105610.0,1.70008048]
[1737316142285,7.691e-05,105620.0,105610.0,1.70008025]
[1737316143185,7.691e-05,105620.0,105610.0,2.21185707]
[1737316143795,7.691e-05,105620.0,105610.0,2.30355709]
[1737316145693,7.691e-05,105620.0,105610.0,2.30355725]
[1737316146692,7.691e-05,105620.0,105610.0,1.94275725]
[1737316147093,7.691e-05,105620.0,105610.0,2.30355725]
[1737316147491,7.691e-05,105620.0,105610.0,2.75222107]
[1737316148589,7.691e-05,105620.0,105610.0,3.13939339]
[1737316149398,7.691e-05,105620.0,105610.0,3.13939345]
[1737316149793,7.691e-05,105620.0,105610.0,2.78748263]
[1737316149989,7.691e-05,105620.0,105610.0,2.78748275]
[1737316150191,7.691e-05,105620.0,105610.0,2.77859357]
[1737316151400,7.691e-05,105620.0,105610.0,2.77859363]
[1737316151603,7.691e-05,105620.0,105610.0,2.78748281]
[1737316151791,7.691e-05,105620.0,105610.0,2.77859363]
[1737316151998,7.691e-05,105620.0,105610.0,2.32992968]
[1737316152198,7.691e-05,105620.0,105610.0,2.3388168]
[1737316152398,7.691e-05,105620.0,105610.0,2.84356375]
[1737316152609,7.691e-05,105620.0,105610.0,2.84356376]
[1737316152811,7.691e-05,105620.0,105610.0,2.83467663]
[1737316153692,0.36087691,105620.0,105610.0,2.55527663]
[1737316153902,0.09947691,105620.0,105610.0,2.55527663]
[1737316154102,7.691e-05,105620.0,105610.0,1.76405736]
[1737316154307,7.691e-05,105620.0,105610.0,2.33784492]
[1737316154607,7.691e-05,105620.0,105610.0,2.32360492]
[1737316154806,7.691e-05,105620.0,105610.0,2.84259187]
[1737316155307,7.691e-05,105620.0,105610.0,2.83370431]
[1737316155504,7.691e-05,105620.0,105610.0,2.47290431]
[1737316155698,7.691e-05,105620.0,105610.0,2.93536314]
[1737316157108,7.691e-05,105620.0,105610.0,3.38475435]
[1737316157608,7.691e-05,105620.0,105610.0,3.38475453]
[1737316159811,7.691e-05,105620.0,105610.0,3.38475453]
[1737316160110,7.691e-05,105620.0,105610.0,3.28315453]
[1737316161012,7.691e-05,105620.0,105610.0,3.28315471]
[1737316161212,7.691e-05,105620.0,105610.0,2.82069588]
[1737316161511,0.36087691,105620.0,105610.0,2.82069588]
[1737316161907,7.691e-05,105620.0,105610.0,2.82069588]
[1737316162109,7.691e-05,105620.0,105610.0,2.38019217]
[1737316162619,7.691e-05,105620.0,105610.0,2.37130467]
[1737316163005,0.36087691,105620.0,105610.0,2.37130467]
[1737316163206,7.691e-05,105620.0,105610.0,2.37130467]
[1737316163410,0.36087691,105620.0,105610.0,2.82864469]
[1737316164915,0.36087691,105620.0,105610.0,2.87071243]
[1737316165118,0.36087691,105620.0,105610.0,2.82864469]
[1737316166309,7.691e-05,105620.0,105610.0,2.82864469]
[1737316166818,7.691e-05,105620.0,105610.0,2.82864451]
[1737316167417,7.691e-05,105620.0,105610.0,2.62544451]
[1737316167605,0.36087691,105620.0,105610.0,2.61120451]
[1737316167809,0.66007691,105620.0,105610.0,2.61120451]
[1737316168713,0.66007691,105620.0,105610.0,2.61120565]
[1737316169219,0.66007691,105620.0,105610.0,2.04310164]
[1737316174421,0.29927691,105620.0,105610.0,2.04310156]
[1737316174621,1.02087691,105620.0,105610.0,2.04310156]
[1737316175311,1.02087691,105620.0,105610.0,2.55867621]
[1737316176627,1.02087691,105620.0,105610.0,2.09938484]
[1737316177519,1.02087691,105620.0,105610.0,2.10531054]
[1737316178230,1.02087691,105620.0,105610.0,2.10531035]
[1737316179429,1.02087691,105620.0,105610.0,2.5645388]
[1737316179623,0.72167691,105620.0,105610.0,2.5645388]
[1737316180122,0.72167691,105620.0,105610.0,2.55090988]
[1737316180330,0.72167691,105620.0,105610.0,2.56453868]
[1737316181033,0.72167691,105620.0,105610.0,2.56453867]
[1737316182249,0.36087691,105620.0,105610.0,2.10531022]
[1737316183335,0.29285349,105620.0,105610.0,2.10531022]
[1737316183543,0.3608,105630.0,105620.0,0.04739]
[1737316183841,0.3608,105630.0,105620.0,0.06101879]
[1737316184448,0.36089323,105630.0,105620.0,0.06101879]
[1737316184947,0.36089323,105630.0,105620.0,1.13572226]
[1737316185537,0.36552134,105640.0,105620.0,1.13572226]
[1737316185735,0.3608,105640.0,105630.0,0.047389]
[1737316185939,0.3608,105640.0,105630.0,0.06101779]
[1737316186135,0.3608,105640.0,105630.0,0.17341622]
[1737316187442,0.3608,105640.0,105630.0,1.64157371]
[1737316187640,0.3608,105640.0,105630.0,1.63564883]
[1737316189846,0.3608,105640.0,105630.0,1.6356487]
[1737316191843,0.3608,105640.0,105630.0,1.63564882]
[1737316192244,0.3608,105640.0,105630.0,2.09557811]
[1737316195344,0.3608,105640.0,105630.0,2.21167811]
[1737316195550,0.3608,105640.0,105630.0,2.20397578]
[1737316195851,0.3608,105640.0,105630.0,2.21167772]
[1737316196053,0.3608,105640.0,105630.0,2.72099772]
[1737316197353,0.3608,105640.0,105630.0,2.72099761]
[1737316198546,0.3608,105640.0,105630.0,2.72157401]
[1737316199053,0.3608,105640.0,105630.0,2.72099761]
[1737316199444,0.3608,105640.0,105630.0,2.27073137]
[1737316199643,0.3608,105640.0,105630.0,2.2707318]
[1737316200256,0.3608,105640.0,105630.0,2.27130823]
[1737316200444,0.3608,105640.0,105630.0,2.22391923]
[1737316200747,0.3608,105640.0,105630.0,2.2239193]
[1737316200951,0.3608,105640.0,105630.0,2.2713083]
[1737316201740,0.3608,105640.0,105630.0,1.85663148]
[1737316202854,0.3608,105640.0,105630.0,1.85663111]
[1737316203757,0.3608,105640.0,105630.0,1.85605463]
[1737316204752,0.3608,105640.0,105630.0,2.25831178]
[1737316204953,0.3248,105640.0,105630.0,2.25831178]
[1737316205852,0.3248,105640.0,105630.0,2.38453629]
[1737316206254,0.7086,105650.0,105630.0,2.74533629]
[1737316206551,0.7086,105650.0,105640.0,0.00057648]
[1737316206552,0.5943,105650.0,105640.0,0.00057648]
[1737316206757,0.3608,105650.0,105640.0,0.0610107]
[1737316208453,0.38519143,105660.0,105650.0,0.04738]
[1737316208654,0.38519143,105660.0,105650.0,0.06158141]
[1737316209255,0.3608,105660.0,105650.0,0.06158141]
[1737316209854,0.3608,105660.0,105650.0,1.12386524]
[1737316210553,0.3608,105660.0,105650.0,1.1238646]
[1737316210955,0.3608,105660.0,105650.0,1.12386469]
[1737316211153,0.3608,105660.0,105650.0,0.72160751]
[1737316211955,0.3608,105660.0,105650.0,0.71568379]
[1737316213060,0.3608,105660.0,105650.0,0.83698379]
[1737316216058,0.408176,105660.0,105650.0,0.78902748]
[1737316216264,0.408176,105660.0,105650.0,0.78902781]
[1737316217259,0.408176,105660.0,105650.0,0.66772781]
[1737316218063,0.408176,105660.0,105650.0,0.66772871]
[1737316218657,0.408176,105660.0,105650.0,0.66002665]
[1737316218857,0.408176,105660.0,105650.0,0.66772868]
[1737316219260,0.408176,105660.0,105650.0,0.67722839]
[1737316220166,0.408176,105660.0,105650.0,0.67722829]
[1737316221960,0.408176,105660.0,105650.0,0.67722806]
[1737316223558,0.408176,105660.0,105650.0,1.01432064]
[1737316225869,0.408176,105660.0,105650.0,1.01432017]
[1737316226070,0.408176,105660.0,105650.0,1.140697]
[1737316226266,0.408176,105660.0,105650.0,1.188077]
[1737316226470,0.408176,105660.0,105650.0,0.85098446]
[1737316226659,0.408176,105660.0,105650.0,0.85040748]
[1737316226865,0.408176,105660.0,105650.0,0.8569085]
[1737316227870,0.408176,105660.0,105650.0,0.85690851]
[1737316228874,0.3608,105660.0,105650.0,0.85690851]
[1737316229067,0.3608,105660.0,105650.0,1.10690851]
[1737316230072,0.3608,105660.0,105650.0,1.10633144]
[1737316230269,0.3608,105660.0,105650.0,1.10690837]
[1737316230665,0.3608,105660.0,105650.0,1.50630938]
[1737316232677,0.3608,105660.0,105650.0,1.50573245]
[1737316233268,0.3608,105660.0,105650.0,1.45892942]
[1737316234164,0.408176,105660.0,105650.0,1.45892942]
[1737316234766,0.408176,105660.0,105650.0,1.05952841]
[1737316235177,0.408176,105660.0,105650.0,1.05895144]
[1737316236071,0.408176,105660.0,105650.0,1.45240546]
[1737316237172,0.20913157,105660.0,105650.0,1.87210267]
[1737316237372,0.20913157,105660.0,105650.0,1.87210269]
[1737316238282,0.20913157,105660.0,105650.0,1.87189324]
[1737316240185,0.20913157,105660.0,105650.0,1.87247037]
[1737316243185,0.20913157,105660.0,105650.0,1.87247079]
[1737316246987,0.20913157,105660.0,105650.0,1.87247082]
[1737316247586,0.20913157,105660.0,105650.0,1.45277361]
[1737316248876,0.20913157,105660.0,105650.0,1.45277384]
[1737316250085,0.20913157,105660.0,105650.0,1.45277381]
[1737316251087,0.20913157,105660.0,105650.0,1.44684975]
[1737316251587,0.20913157,105660.0,105650.0,1.85472334]
[1737316253088,0.20913157,105660.0,105650.0,1.86006976]
[1737316253487,0.20913157,105660.0,105650.0,1.86064749]
[1737316253786,0.20913157,105660.0,105650.0,1.86064746]
[1737316254090,0.20913157,105660.0,105650.0,1.86006976]
[1737316255179,0.20913157,105660.0,105650.0,1.86064749]
[1737316255383,0.20913157,105660.0,105650.0,1.86006976]
[1737316257481,0.20913157,105660.0,105650.0,1.86006981]
[1737316259189,0.20913157,105660.0,105650.0,1.46661579]
[1737316261688,0.20913157,105660.0,105650.0,1.8608257]
[1737316263187,0.20913157,105660.0,105650.0,1.48560357]
[1737316263392,0.20913157,105660.0,105650.0,1.07715211]
[1737316264396,0.20913157,105660.0,105650.0,1.07715289]
[1737316264991,0.20913157,105660.0,105650.0,0.68294298]
[1737316267688,0.20913157,105660.0,105650.0,0.68294342]
[1737316269594,0.20913157,105660.0,105650.0,0.68294322]